bitfinex-derivatives/quotes_ETHF0:USTF0_20250926
["timestamp","ask_amount","ask_price","bid_price","bid_amount"]
[1758849494506,0.47,3943.5,3942.7,0.271]
[1758849494703,0.1373,3944.0,3942.7,0.271]
[1758849494704,0.47,3944.0,3943.5,0.0638]
[1758849494914,0.47,3944.0,3943.3,0.0638]
[1758849495109,0.1373,3944.0,3943.6,0.271]
[1758849495610,0.3327,3943.9,3943.6,0.271]
[1758849495811,0.3327,3943.9,3942.8,0.0638]
[1758849496016,0.3327,3944.4,3944.0,0.51986]
[1758849496220,0.59321,3945.5,3944.2,0.45604]
[1758849496418,0.3327,3944.9,3944.0,0.3348]
[1758849496613,0.3327,3944.9,3944.5,0.456]
[1758849497114,0.3327,3945.4,3944.6,0.3348]
[1758849497316,0.3327,3945.4,3944.7,0.45599]
[1758849497517,0.1373,3945.5,3944.0,40.8]
[1758849497518,0.3327,3944.9,3944.0,40.8]
[1758849497813,0.3327,3944.9,3944.1,0.271]
[1758849498113,0.3327,3944.9,3944.0,40.8]
[1758849498318,0.3327,3944.9,3944.1,0.271]
[1758849498717,0.45599,3944.7,3944.0,40.8]
[1758849498915,0.3327,3944.4,3943.6,0.45611]
[1758849499213,0.3327,3944.4,3944.0,0.271]
[1758849499713,0.1373,3944.5,3943.8,0.27]
[1758849499906,0.3327,3944.4,3943.8,0.27]
[1758849500111,0.3327,3944.4,3944.0,0.0638]
[1758849500312,0.3327,3944.4,3943.8,0.3338]
[1758849500513,0.0253,3944.6,3944.5,0.51981]
[1758849500713,0.0253,3944.6,3944.5,0.78981]
[1758849501529,0.358,3944.6,3944.5,0.27]
[1758849502214,0.1373,3944.5,3943.9,40.8]
[1758849502416,0.1373,3944.5,3944.0,0.72607]
[1758849502719,0.3327,3944.4,3944.1,0.27]
[1758849503021,0.3327,3943.9,3943.1,0.45617]
[1758849503221,0.3327,3943.9,3943.3,0.45615]
[1758849504515,0.1373,3944.0,3942.8,41.25621]
[1758849504821,0.3327,3943.9,3943.2,5.28950721]
[1758849505019,0.3327,3943.9,3943.5,0.45613]
[1758849505222,0.47,3944.5,3943.7,5.35330721]
[1758849505420,0.47,3944.5,3944.3,0.45603]
[1758849505645,0.3327,3944.5,3944.4,0.27]
[1758849505816,0.0253,3944.6,3944.5,0.45601]
[1758849506128,0.0253,3944.6,3944.5,0.51981]
[1758849507115,0.0253,3944.6,3944.4,0.27]
[1758849507116,0.0253,3944.6,3944.4,0.72602]
[1758849507321,0.0253,3944.6,3943.8,39.557]
[1758849507322,0.358,3944.6,3944.5,0.27]
[1758849507520,0.0253,3944.6,3944.5,0.72601]
[1758849507723,0.0253,3944.6,3944.5,0.27]
[1758849507925,0.1373,3944.5,3943.9,0.45608]
[1758849508124,0.1373,3944.5,3944.0,0.27]
[1758849508327,0.0253,3944.6,3944.4,0.0638]
[1758849508521,0.0253,3944.6,3944.5,0.72601]
[1758849508716,0.0253,3944.6,3944.5,0.78981]
[1758849509127,0.0253,3944.6,3944.5,0.72601]
[1758849510222,0.0253,3944.6,3944.5,5.78811]
[1758849511025,0.0253,3944.6,3944.5,0.72601]
[1758849511227,0.0253,3944.6,3944.5,0.51811]
[1758849511430,0.0253,3944.6,3944.5,0.78811]
[1758849512027,0.0253,3944.6,3944.5,0.72601]
[1758849512627,0.0253,3944.6,3944.5,5.78811]
[1758849512822,0.1373,3945.5,3945.3,0.45591]
[1758849513125,0.1373,3945.5,3945.4,0.27]
[1758849513126,0.4599,3945.5,3945.4,0.27]
[1758849514027,0.3226,3945.4,3945.0,0.45595]
[1758849514324,0.1373,3945.5,3945.4,0.27]
[1758849514628,0.4599,3945.5,3944.9,0.45596]
[1758849514819,0.3226,3945.4,3945.0,0.27]
[1758849515021,0.3226,3945.4,3945.0,0.72594]
[1758849515327,0.1373,3945.5,3945.0,0.72594]
[1758849515824,0.3226,3945.4,3945.0,0.72594]
[1758849516230,0.1373,3945.5,3945.0,0.72594]
[1758849516732,0.3226,3945.4,3945.0,0.27]
[1758849517727,0.3226,3945.4,3944.2,39.546]
[1758849517728,0.1304,3944.5,3944.0,5.28950721]
[1758849517921,0.1304,3944.5,3943.8,0.45608]
[1758849518121,0.1304,3944.0,3943.6,0.45611]
[1758849518319,0.1304,3944.0,3943.5,5.28950721]
[1758849518320,0.3226,3943.9,3943.7,0.27]
[1758849518517,0.3226,3943.9,3943.6,0.27]
[1758849518717,0.1304,3944.0,3943.2,0.45615]
[1758849518718,0.58647,3944.0,3943.2,0.45615]
[1758849518922,0.58647,3944.0,3942.9,5.74568721]
[1758849518923,0.453,3943.0,3942.9,5.74568721]
[1758849519123,0.453,3943.5,3943.2,0.45615]
[1758849519333,0.453,3944.0,3943.4,5.28950721]
[1758849519529,0.453,3944.0,3943.8,0.45609]
[1758849519530,0.3226,3943.9,3943.8,0.45609]
[1758849519728,0.3226,3944.4,3943.8,0.27]
[1758849520134,0.3226,3944.1,3942.9,5.28950721]
[1758849520334,0.1304,3944.0,3943.1,0.45616]
[1758849520531,0.1304,3944.0,3943.0,0.27]
[1758849520736,0.3226,3943.9,3943.0,0.27]
[1758849520935,0.3226,3943.8,3943.1,0.72616]
[1758849521136,0.3226,3943.9,3943.3,0.45614]
[1758849521437,0.1304,3944.0,3943.4,0.27]
[1758849521438,0.3226,3943.7,3943.4,0.27]
[1758849521628,0.453,3943.5,3943.4,0.27]
[1758849522622,0.3226,3942.9,3942.5,40.8]
[1758849522823,0.3226,3942.9,3941.9,5.28950721]
[1758849522824,0.77879,3942.9,3941.9,5.28950721]
[1758849523022,0.1304,3943.0,3941.5,0.45635]
[1758849523023,0.3226,3941.9,3941.5,0.45635]
[1758849523250,0.3226,3941.9,3941.6,0.27]
[1758849523428,0.1304,3942.5,3941.6,0.27]
[1758849523429,0.453,3942.5,3941.9,0.45631]
[1758849523629,0.3226,3942.3,3941.0,0.0368]
[1758849523926,0.453,3942.0,3941.1,0.27]
[1758849524133,0.453,3942.0,3941.4,0.45636]
[1758849524433,0.1304,3942.0,3941.5,0.72635]
[1758849524636,0.1304,3942.0,3941.6,4.755285]
[1758849524835,0.58665,3942.5,3941.6,4.755285]
[1758849524836,0.1304,3942.5,3942.3,0.45626]
[1758849525128,0.1304,3942.5,3942.0,4.755285]
[1758849525336,0.1304,3942.5,3942.1,0.72628]
[1758849526127,0.3226,3942.4,3942.1,0.72628]
[1758849526331,0.1304,3942.5,3942.1,0.72628]
[1758849526523,0.1304,3942.5,3942.1,0.27]
[1758849526729,0.1304,3942.0,3941.6,5.211625]
[1758849526934,0.1304,3942.0,3941.7,0.27]
[1758849527128,0.3226,3941.9,3941.7,0.27]
[1758849527537,0.3226,3941.9,3941.8,0.27]
[1758849527929,0.3226,3941.9,3941.4,40.8]
[1758849527930,0.1304,3941.5,3941.4,40.8]
[1758849528129,0.3226,3941.4,3941.3,0.45637]
[1758849528333,0.1304,3941.5,3940.9,0.27]
[1758849528334,0.3226,3941.2,3940.9,0.27]
[1758849528535,0.58676,3941.5,3940.9,0.27]
[1758849528536,0.1304,3941.0,3940.9,0.27]
[1758849528729,0.453,3941.0,3940.9,0.27]
[1758849528933,0.1304,3940.5,3940.4,4.755285]
[1758849529239,0.1304,3940.5,3940.0,0.45652]
[1758849529240,0.3226,3940.4,3940.0,4.755285]
[1758849529436,0.1304,3940.5,3940.1,0.27]
[1758849529736,0.3226,3940.4,3940.0,4.755285]
[1758849529931,0.1304,3940.5,3940.1,0.27]
[1758849530476,0.3226,3940.4,3940.2,0.27]
[1758849530633,0.3226,3940.4,3939.6,5.211845]
[1758849530634,0.3226,3940.3,3939.6,4.755285]
[1758849530831,0.58687,3940.5,3939.6,4.755285]
[1758849530832,0.1304,3940.0,3939.6,4.755285]
[1758849531030,0.1304,3940.0,3939.4,0.45659]
[1758849531231,0.3226,3939.9,3939.5,0.27]
[1758849531837,0.3226,3939.9,3939.3,0.45659]
[1758849532034,0.3226,3940.2,3940.1,0.45651]
[1758849532336,0.1304,3941.0,3940.2,0.45649]
[1758849532545,0.1304,3941.0,3939.2,1.14153]
[1758849532546,0.1304,3940.5,3940.3,0.27]
[1758849532738,0.1304,3940.5,3940.4,0.27]
[1758849533341,0.453,3940.5,3940.4,0.27]
[1758849535138,0.3226,3940.9,3940.6,0.45644]
[1758849535338,0.3226,3940.9,3940.7,0.45643]
[1758849535537,0.3226,3940.9,3940.8,0.27]
[1758849535736,0.1304,3941.0,3940.8,0.27]
[1758849535939,0.0253,3941.1,3940.9,0.45641]
[1758849536236,0.0253,3941.1,3941.0,0.3068]
[1758849536436,0.1304,3942.0,3941.1,0.0115]
[1758849536652,0.52712505,3942.2,3941.9,0.45629]
[1758849536840,0.1304,3942.5,3942.0,0.72627]
[1758849537038,0.1304,3942.5,3942.2,0.45625]
[1758849537039,0.3226,3942.4,3942.2,0.45625]
[1758849537233,0.3226,3942.4,3941.6,4.755285]
[1758849537536,0.3226,3942.4,3941.7,0.27]
[1758849537842,0.3226,3942.4,3941.7,0.45631]
[1758849538038,0.3226,3942.4,3941.6,4.755285]
[1758849538244,0.1304,3942.5,3941.7,0.27]
[1758849538245,0.3226,3941.9,3941.7,0.27]
[1758849538539,0.3226,3941.9,3941.8,0.27]
[1758849539136,0.3226,3941.9,3941.2,0.45637]
[1758849539437,0.3226,3941.9,3941.3,0.27]
[1758849539633,0.1304,3942.0,3941.4,0.45635]
[1758849539835,0.3226,3941.4,3941.2,0.45638]
[1758849540039,0.3226,3941.4,3941.3,0.27]
[1758849540241,0.1304,3942.0,3941.4,0.45635]
[1758849540436,0.1304,3942.0,3941.3,0.27]
[1758849540437,0.1304,3942.0,3941.6,4.755285]
[1758849540642,0.313,3942.4,3941.7,0.72632]
[1758849540944,0.1557,3942.5,3941.8,0.45631]
[1758849541335,0.1557,3942.5,3941.9,0.27]
[1758849541538,0.313,3942.4,3941.9,0.27]
[1758849541941,0.1557,3942.5,3941.9,0.27]
[1758849542143,0.1557,3942.5,3941.2,4.755285]
[1758849542144,0.1557,3942.5,3942.0,0.27]
[1758849542349,0.313,3942.4,3942.0,0.27]
[1758849542838,0.313,3942.4,3941.4,0.45634]
[1758849543040,0.1358,3942.0,3941.4,0.45634]
[1758849543247,0.1358,3942.0,3940.8,39.569]
[1758849543248,0.4488,3943.5,3942.9,0.45617]
[1758849543438,0.4488,3943.5,3943.3,5.211405]
[1758849543439,0.313,3943.5,3943.3,5.211405]
[1758849543634,0.1358,3944.5,3943.8,0.45606]
[1758849543835,0.336,3944.4,3944.0,0.45605]
[1758849544039,0.1358,3944.5,3944.0,0.45605]
[1758849544240,0.1358,3944.5,3944.1,0.45602]
[1758849544444,0.34276735,3945.5,3944.5,0.45598]
[1758849544445,0.336,3944.9,3944.5,0.45598]
[1758849545145,0.336,3944.9,3944.6,0.27]
[1758849545445,0.1358,3945.5,3944.6,0.27]
[1758849545446,0.1358,3945.5,3944.9,0.45593]
[1758849545634,0.336,3945.4,3945.0,0.27]
[1758849546144,0.45589,3945.3,3945.0,0.27]
[1758849546445,0.4744,3944.5,3944.2,40.8]
[1758849546633,0.4744,3944.5,3944.2,0.27]
[1758849546837,0.336,3944.4,3944.2,0.27]
[1758849547044,0.59433,3945.0,3944.2,0.27]
[1758849547045,0.4744,3945.0,3944.3,0.45601]
[1758849547437,0.336,3944.9,3944.2,0.27]
[1758849547636,0.1384,3945.0,3944.2,0.27]
[1758849547637,0.336,3944.4,3944.2,0.27]
[1758849547848,0.1384,3944.5,3944.2,0.27]
[1758849548055,0.336,3944.4,3944.2,0.27]
[1758849548349,0.1384,3944.5,3943.8,0.27]
[1758849548350,0.1384,3944.0,3943.8,0.27]
[1758849548552,0.336,3943.9,3943.8,0.27]
[1758849549947,0.336,3943.9,3943.2,45.555285]
[1758849549948,0.1384,3943.5,3943.2,45.555285]
[1758849550251,0.1384,3943.5,3942.5,0.27]
[1758849550252,0.45612,3943.4,3942.5,0.27]
[1758849550555,0.336,3942.9,3942.5,0.27]
[1758849550851,0.1384,3943.0,3941.9,4.755285]
[1758849550852,0.1384,3942.5,3942.0,0.27]
[1758849551243,0.336,3942.4,3942.0,0.27]
[1758849551446,0.1384,3942.5,3942.0,0.72627]
[1758849552150,0.336,3942.4,3942.2,0.45624]
[1758849552343,0.1384,3943.0,3942.0,0.27]
[1758849552344,0.336,3943.4,3943.0,0.45616]
[1758849552654,0.336,3943.4,3943.2,0.45614]
[1758849553044,0.336,3943.4,3943.0,5.025285]
[1758849553249,0.1384,3943.5,3943.0,5.025285]
[1758849553456,0.336,3943.4,3943.0,5.025285]
[1758849553748,0.1384,3943.0,3942.4,40.8]
[1758849554044,0.1384,3943.5,3942.6,0.27]
[1758849554045,0.336,3943.4,3942.6,0.27]
[1758849554253,0.79212,3943.4,3942.6,0.27]
[1758849554452,0.45614,3943.3,3942.6,0.27]
[1758849555050,0.336,3942.9,3942.6,0.27]
[1758849555249,0.1384,3943.0,3941.7,40.8]
[1758849555446,0.1384,3943.0,3942.0,0.45627]
[1758849555641,0.336,3942.9,3942.0,0.45627]
[1758849556054,0.1384,3943.0,3942.0,0.45627]
[1758849556557,0.336,3942.9,3941.1,45.565585]
[1758849556749,0.336,3942.1,3941.2,0.45636]
[1758849557056,0.45627,3942.2,3941.3,0.72635]
[1758849557057,0.336,3941.9,3941.3,0.72635]
[1758849557245,0.336,3941.9,3941.6,0.45632]
[1758849557445,0.1384,3942.5,3941.7,0.27]
[1758849557641,0.1384,3942.5,3941.9,5.211575]
[1758849557642,0.4744,3942.5,3941.9,5.211575]
[1758849557848,0.4744,3942.5,3941.9,4.755285]
[1758849558255,0.4744,3942.5,3941.9,5.211575]
[1758849558651,0.4744,3942.5,3941.9,4.755285]
[1758849559149,0.45626,3942.2,3941.7,0.27]
[1758849559452,0.1384,3942.5,3941.7,0.27]
[1758849559453,0.336,3941.9,3941.7,0.27]
[1758849559652,0.336,3941.9,3941.3,0.45636]
[1758849559956,0.336,3942.0,3941.6,0.45632]
[1758849560156,0.336,3942.0,3941.7,0.7263]
[1758849560960,0.336,3942.4,3941.7,0.7263]
[1758849561857,0.79224,3942.4,3941.7,0.27]
[1758849562060,0.336,3942.2,3941.7,0.27]
[1758849562255,0.45625,3942.3,3941.7,0.27]
[1758849562457,0.1384,3942.0,3941.7,0.27]
[1758849563060,0.336,3941.9,3941.7,0.27]
[1758849563259,0.1384,3942.0,3941.7,0.27]
[1758849563665,0.336,3942.4,3942.0,0.45628]
[1758849563967,0.1384,3942.5,3942.1,0.45626]
[1758849564254,0.1384,3942.5,3942.2,0.45624]
[1758849564255,0.4744,3942.5,3942.2,0.45624]
[1758849564659,0.1384,3942.5,3942.1,0.27]
[1758849564850,0.336,3942.4,3942.1,0.27]
[1758849565055,0.1384,3943.0,3942.3,0.45623]
[1758849565056,0.336,3942.9,3942.3,0.45623]
[1758849566359,0.336,3942.9,3941.3,0.0103]
[1758849566561,0.336,3942.4,3941.4,0.27]
[1758849566762,0.336,3942.4,3941.7,0.45631]
[1758849567569,0.336,3942.4,3942.2,0.45625]
[1758849567758,0.336,3942.4,3942.0,0.45627]
[1758849567960,0.1384,3942.5,3942.0,0.45627]
[1758849568168,0.1384,3942.5,3941.8,0.27]
[1758849568169,0.336,3942.4,3941.8,0.27]
[1758849568465,0.1384,3942.0,3941.7,0.27]
[1758849568659,0.336,3941.9,3941.7,0.27]
[1758849569166,0.1384,3942.0,3941.7,0.27]
[1758849569369,0.336,3941.9,3941.7,0.27]
[1758849569670,0.336,3941.9,3940.6,39.564]
[1758849569671,0.336,3941.4,3940.6,4.755285]
[1758849569966,0.79236,3941.4,3940.5,0.72644]
[1758849570268,0.3233,3941.1,3940.6,0.45643]
[1758849570469,0.1263,3941.0,3940.6,0.45643]
[1758849570661,0.3233,3940.9,3940.7,0.45642]
[1758849570869,0.1263,3941.0,3940.5,0.27]
[1758849571057,0.3233,3940.9,3940.5,0.27]
[1758849571559,0.77971,3940.9,3940.5,0.27]
[1758849571764,0.3233,3940.6,3940.5,0.27]
[1758849573368,0.3233,3940.4,3939.9,0.27]
[1758849573560,0.3233,3940.9,3940.1,4.755285]
[1758849573872,0.3233,3941.4,3940.6,4.767385]
[1758849574169,0.1263,3941.0,3940.7,0.27]
[1758849574362,0.3233,3941.4,3941.1,0.45637]
[1758849574567,0.1384,3941.5,3941.1,0.45637]
[1758849574764,0.1384,3942.0,3941.0,0.27]
[1758849574765,0.1384,3942.0,3941.3,0.45635]
[1758849574969,0.1263,3941.5,3941.3,0.45635]
[1758849575164,0.3233,3941.4,3941.3,0.45635]
[1758849576865,0.3233,3941.4,3941.0,0.27]
[1758849577267,0.1263,3941.5,3941.3,0.45636]
[1758849577471,0.3233,3941.4,3941.3,0.45636]
[1758849577771,0.3233,3941.4,3941.0,0.72638]
[1758849577970,0.1263,3941.5,3941.0,0.72638]
[1758849578162,0.3233,3941.4,3941.1,0.45638]
[1758849578667,0.3233,3940.4,3940.3,0.45647]
[1758849578869,0.3233,3940.9,3940.8,0.45642]
[1758849580775,0.3233,3941.4,3941.1,0.45637]
[1758849580965,0.3233,3941.4,3940.8,5.025285]
[1758849581166,0.3233,3940.9,3939.8,4.755285]
[1758849581476,0.3233,3940.9,3940.5,0.45644]
[1758849582073,0.3233,3940.9,3940.2,0.27]
[1758849582260,0.3233,3940.8,3940.2,0.72648]
[1758849582464,0.3233,3940.7,3940.6,0.45644]
[1758849582874,0.3233,3940.7,3940.2,0.27]
[1758849582875,0.1263,3940.5,3940.4,0.45646]
[1758849583072,0.1263,3940.5,3940.2,0.72648]
[1758849583268,0.1263,3940.5,3940.2,0.27]
[1758849583872,0.3233,3940.4,3940.2,0.27]
[1758849584076,0.3233,3940.4,3940.2,0.72648]
[1758849584277,0.4496,3940.5,3940.3,0.45647]
[1758849584470,0.3233,3940.4,3940.3,0.45647]
[1758849584670,0.3233,3940.8,3940.7,0.45643]
[1758849584871,0.4496,3941.0,3940.9,0.45641]
[1758849585281,0.1263,3941.5,3941.3,0.45636]
[1758849585282,0.3233,3941.4,3941.3,0.45636]
[1758849586276,0.3233,3941.9,3941.3,5.0]
[1758849586481,0.3233,3941.7,3941.5,0.45633]
[1758849586678,0.3233,3941.6,3941.2,0.27]
[1758849586971,0.59469,3942.0,3941.2,0.27]
[1758849587178,0.3233,3941.8,3941.2,0.27]
[1758849587373,0.54109168,3941.9,3941.2,0.27]
[1758849587374,0.3233,3941.6,3941.2,0.27]
[1758849587580,0.3233,3941.4,3941.3,0.45636]
[1758849588277,0.3233,3941.4,3940.8,0.0121]
[1758849588278,0.58265,3941.5,3940.2,5.29462732]
[1758849588506,0.54121609,3941.4,3940.7,0.45642]
[1758849588781,0.3233,3941.4,3940.8,0.27]
[1758849588982,0.54124256,3941.3,3940.9,0.4564]
[1758849589174,0.4496,3941.0,3940.9,0.4564]
[1758849589374,0.4496,3941.0,3940.8,0.27]
[1758849589375,0.3233,3941.4,3941.1,0.45637]
[1758849589674,0.3233,3941.2,3941.1,0.45637]
[1758849591481,0.48161,3941.8,3941.4,0.45635]
[1758849591482,0.0253,3941.8,3941.4,0.45635]
[1758849591670,0.0253,3941.8,3940.7,5.29462732]
[1758849591671,0.1263,3941.5,3941.3,0.27]
[1758849591982,0.3233,3941.4,3941.3,0.27]
[1758849592476,0.1263,3941.0,3940.7,0.72643]
[1758849592682,0.1263,3941.0,3940.9,0.45641]
[1758849592683,0.4496,3941.0,3940.9,0.45641]
[1758849593377,0.3233,3940.9,3940.7,0.27]
[1758849594272,0.86485661,3940.8,3940.7,0.27]
[1758849594589,0.1263,3940.5,3940.2,0.45648]
[1758849594882,0.1263,3940.5,3940.4,0.45647]
[1758849595084,0.1263,3940.5,3940.2,0.27]
[1758849595271,0.3233,3940.4,3940.2,0.27]
[1758849595477,0.3233,3940.4,3940.3,0.45647]
[1758849595673,0.1263,3940.5,3940.2,0.72648]
[1758849596074,0.1263,3940.5,3939.8,40.8]
[1758849596277,0.1263,3940.0,3939.9,0.27]
[1758849596583,0.4496,3940.0,3939.9,0.27]
[1758849597672,0.4496,3940.0,3939.3,40.8]
[1758849597673,0.90612,3940.0,3939.3,40.8]
[1758849597874,0.3233,3939.4,3939.3,0.27]
[1758849598181,0.4496,3940.0,3939.3,0.27]
[1758849598481,1.80979107,3941.2,3939.9,5.29462732]
[1758849598685,0.1263,3941.5,3941.4,0.45635]
[1758849598876,0.4496,3941.5,3941.4,0.72735]
[1758849599078,0.0253,3941.8,3941.7,0.45632]
[1758849599781,0.0253,3941.8,3941.7,0.72732]
[1758849600977,0.0253,3941.8,3941.7,0.271]
[1758849601178,0.3476,3940.9,3940.7,39.578]
[1758849601385,0.3476,3940.9,3940.8,0.271]
[1758849601581,0.1258,3941.5,3940.8,0.271]
[1758849601886,0.3476,3942.8,3942.4,0.45624]
[1758849602091,0.3476,3942.8,3942.4,6.02386732]
[1758849602385,0.1258,3943.0,3942.4,6.02386732]
[1758849602578,0.4739,3942.5,3942.4,6.02386732]
[1758849603388,0.4739,3942.5,3942.4,0.72924]
[1758849603587,0.4739,3942.5,3942.2,0.45625]
[1758849603588,0.3476,3942.4,3942.2,0.45625]
[1758849603890,0.4547,3941.5,3941.4,40.02935]
[1758849604095,0.1258,3942.0,3941.9,0.45629]
[1758849604391,0.1258,3942.0,3941.9,0.72929]
[1758849604786,0.1258,3942.0,3941.4,80.373]
[1758849604787,0.1258,3942.0,3941.5,0.45633]
[1758849604993,0.1377,3941.5,3941.4,41.25635]
[1758849605289,0.1377,3941.5,3941.4,0.72935]
[1758849605485,0.1377,3941.5,3941.4,0.273]
[1758849605676,5.1377,3941.5,3941.4,0.273]
[1758849606185,5.1377,3941.5,3941.0,0.45639]
[1758849606382,5.1377,3941.5,3940.6,0.45643]
[1758849606383,0.1377,3941.0,3940.6,0.45643]
[1758849606685,0.1377,3941.0,3940.1,5.29462732]
[1758849606686,0.1377,3940.5,3940.1,5.29462732]
[1758849606996,0.317,3940.4,3940.3,0.45647]
[1758849607479,0.317,3940.4,3940.2,0.273]
[1758849608184,0.317,3939.9,3939.6,0.72956]
[1758849608584,0.1377,3940.0,3939.6,0.72956]
[1758849609081,0.1377,3940.0,3939.8,0.45653]
[1758849609280,0.317,3939.9,3939.8,0.45653]
[1758849609991,0.1377,3940.0,3939.6,0.273]
[1758849610284,0.317,3939.9,3939.6,0.273]
[1758849610488,0.1377,3939.0,3938.6,5.29462732]
[1758849610691,0.1377,3939.0,3938.9,0.45664]
[1758849611195,0.4547,3939.0,3938.9,0.45664]
[1758849612678,0.4547,3939.0,3937.9,0.02539457]
[1758849612679,0.317,3938.9,3937.9,0.02539457]
[1758849613189,0.1377,3938.5,3938.1,0.45673]
[1758849613386,0.1377,3938.5,3938.2,0.45671]
[1758849613587,0.317,3938.4,3938.3,0.4567]
[1758849614193,0.1377,3939.0,3938.9,0.45664]
[1758849614391,0.317,3939.3,3939.1,0.45662]
[1758849614585,0.1377,3939.5,3939.4,0.45658]
[1758849614586,0.4547,3939.5,3939.4,0.45658]
[1758849615591,0.4547,3939.5,3939.3,0.272]
[1758849615592,0.317,3939.9,3939.8,0.45653]
[1758849615792,0.317,3939.9,3939.8,0.72853]
[1758849616500,0.1377,3940.5,3939.8,0.72853]
[1758849616683,0.317,3939.9,3939.8,0.72853]
[1758849617489,0.317,3939.9,3939.8,0.272]
[1758849617693,0.163,3940.5,3939.4,40.8]
[1758849617694,0.317,3939.7,3939.4,40.8]
[1758849617896,0.4547,3939.5,3939.4,40.8]
[1758849618096,0.163,3940.5,3939.4,41.072]
[1758849618396,0.317,3939.8,3939.7,0.45655]
[1758849619286,0.48,3940.5,3940.4,0.45647]
[1758849619490,0.0253,3940.5,3940.4,0.72847]
[1758849619686,0.4547,3941.0,3940.9,0.45641]
[1758849619887,0.4547,3941.0,3940.9,0.72841]
[1758849620093,0.4547,3941.0,3940.9,41.52841]
[1758849620592,0.4547,3941.0,3940.9,40.8]
[1758849620797,0.4547,3941.0,3940.9,41.072]
[1758849620985,0.4547,3941.0,3940.9,40.8]
[1758849621190,0.4547,3941.0,3940.2,0.45648]
[1758849621191,0.317,3940.4,3940.2,0.45648]
[1758849621395,0.4547,3940.5,3940.4,0.45647]
[1758849621596,0.4547,3940.5,3940.4,0.72847]
[1758849622297,0.317,3940.9,3940.8,0.45641]
[1758849622486,0.0253,3941.1,3940.8,0.45641]
[1758849622487,0.0253,3941.1,3941.0,0.4564]
[1758849622889,0.3423,3941.1,3941.0,0.4564]
[1758849623098,0.3423,3941.1,3941.0,0.7284]
[1758849623494,0.3423,3941.1,3941.0,41.5284]
[1758849623694,0.3423,3941.1,3941.0,41.072]
[1758849624497,0.0253,3941.1,3941.0,41.072]
[1758849624694,0.0253,3941.1,3941.0,46.36662732]
[1758849625207,0.0253,3941.1,3941.0,51.36662732]
[1758849625388,0.317,3941.6,3941.5,0.45634]
[1758849625708,0.1377,3942.0,3941.9,0.4563]
[1758849625709,0.4547,3942.0,3941.9,0.4563]
[1758849625888,0.4547,3942.0,3941.9,0.7283]
[1758849626597,0.317,3941.9,3941.0,46.09462732]
[1758849626798,0.317,3941.9,3941.6,0.45633]
[1758849626997,0.317,3941.9,3941.7,0.272]
[1758849628100,0.1377,3942.0,3941.0,41.2564]
[1758849628296,0.317,3941.4,3941.2,0.45637]
[1758849628599,0.1377,3941.5,3941.1,0.272]
[1758849628600,0.1377,3941.5,3941.4,0.45636]
[1758849628900,0.163,3942.0,3941.7,0.45631]
[1758849629101,0.163,3942.0,3941.7,0.72831]
[1758849630097,0.332,3941.9,3941.7,0.72831]
[1758849630301,0.332,3941.8,3941.7,0.72831]
[1758849632206,0.332,3941.8,3941.7,0.272]
[1758849633201,0.332,3941.8,3941.0,40.8]
[1758849633402,0.1335,3941.5,3941.1,0.271]
[1758849633805,0.332,3941.4,3941.0,40.8]
[1758849634023,0.332,3941.4,3941.1,0.271]
[1758849634300,0.78836,3941.4,3941.1,0.271]
[1758849634499,0.1335,3941.0,3940.3,5.29462732]
[1758849634809,0.4655,3940.5,3940.4,40.8]
[1758849635003,0.4655,3940.5,3940.4,0.271]
[1758849635501,0.332,3940.9,3940.8,0.45642]
[1758849635807,0.332,3940.9,3940.8,0.72742]
[1758849636902,0.1335,3941.0,3940.8,0.72742]
[1758849637295,0.332,3941.3,3941.2,0.45638]
[1758849637505,0.332,3941.3,3941.2,0.271]
[1758849637804,0.78837,3941.3,3941.2,0.271]
[1758849638011,0.78837,3941.3,3940.2,5.29462732]
[1758849638012,0.1335,3941.0,3940.5,0.45645]
[1758849638309,0.332,3940.9,3940.6,0.271]
[1758849638499,0.1335,3941.0,3940.6,0.271]
[1758849638699,0.332,3940.9,3940.6,0.271]
[1758849639611,0.332,3940.9,3939.8,40.8]
[1758849639612,0.45643,3940.8,3939.8,40.8]
[1758849639908,0.45643,3940.8,3939.9,0.271]
[1758849639909,0.332,3940.7,3939.9,0.271]
[1758849640113,0.332,3940.6,3940.1,0.4565]
[1758849640304,0.1335,3940.5,3940.1,0.4565]
[1758849640704,0.332,3939.9,3939.8,40.8]
[1758849641010,0.332,3939.9,3939.8,41.071]
[1758849641703,0.332,3939.9,3939.8,0.271]
[1758849643909,0.332,3939.9,3939.8,0.27]
[1758849644105,0.1335,3940.0,3938.8,0.45666]
[1758849644305,0.1335,3940.0,3938.2,1.37135083]
[1758849644306,0.1335,3939.5,3939.0,0.45662]